[Event "GER-ch Youth-ODJM 2022"]
[Site "Willingen"]
[Date "2022.06.05"]
[Round "1.1"]
[White "Wechtenbruch, Jamie"]
[Black "Morio, Estelle"]
[Result "1-0"]
[ECO "B00"]
[WhiteElo "1489"]
[BlackElo "1823"]
[Annotator "NA RC COMBH"]
[PlyCount "89"]
[EventDate "2022.06.05"]
[EventType "swiss"]
[EventRounds "9"]
[EventCountry "GER"]
[SourceTitle "playchess.com"]
[Source "ChessBase"]
[SourceQuality "1"]
[TimeControl "40/4500+30:900+30"]

1. e4 {[%emt 0:00:00]} d6 {[%emt 0:00:00]} 2. Nc3 {[%emt 0:00:00]} Nf6 {[%emt 0:00:00]} 3. f4 {[%emt 0:00:00]} e5 {[%emt 0:00:00]} 4. d3 {[%emt 0:08:31]} Be7 {[%emt 0:00:00]} 5. Be2 {[%emt 0:03:20]} c6 {[%emt 0:00:00]} 6. fxe5 {[%emt 0:05:27]} dxe5 {[%emt 0:00:00]} 7. Bf3 {[%emt 0:04:29]} Nbd7 {[%emt 0:03:09]} 8. Qe2 {[%emt 0:03:38]} Nf8 {[%emt 0:09:27]} 9. Bd2 {[%emt 0:02:39]} Ne6 {[%emt 0:03:01]} 10. Qf2 {[%emt 0:12:31]} Qc7 {[%emt 0:12:43]} 11. Nge2 {[%emt 0:04:11]} Bd7 {[%emt 0:06:15]} 12. Be3 {[%emt 0:01:31]} Qa5 {[%emt 0:02:52]} 13. h3 {[%emt 0:07:49]} Bc5 {[%emt 0:02:09]} 14. Bxc5 {[%emt 0:00:29]} Qxc5 {[%emt 0:01:20]} 15. g4 {[%emt 0:07:10]} Qxf2+ {[%emt 0:02:58]} 16. Kxf2 {[%emt 0:00:20]} h6 {[%emt 0:07:52]} 17. Nd1 {[%emt 0:00:58]} O-O-O {[%emt 0:04:07]} 18. Ne3 {[%emt 0:00:28]} g6 {[%emt 0:00:29]} 19. Nc4 {[%emt 0:00:49]} Be8 {[%emt 0:04:23]} 20. Nxe5 {[%emt 0:00:18]} b5 {[%emt 0:02:36]} 21. Ke3 {[%emt 0:03:37]} c5 22. c3 Ng8 {[%emt 0:05:06]} 23. Bg2 {[%emt 0:04:41]} f6 {[%emt 0:02:46]} 24. Nf3 {[%emt 0:00:26]} Rh7 {[%emt 0:00:56]} 25. Rad1 {[%emt 0:01:10]} Rc7 {[%emt 0:01:09]} 26. Rhf1 {[%emt 0:00:57]} a6 {[%emt 0:01:04]} 27. d4 {[%emt 0:00:39]} cxd4+ {[%emt 0:00:53]} 28. Nfxd4 {[%emt 0:00:08]} Nxd4 {[%emt 0:00:21]} 29. Rxd4 {[%emt 0:00:35]} Rcd7 {[%emt 0:02:33]} 30. Rxd7 {[%emt 0:01:58]} Bxd7 {[%emt 0:00:32]} 31. Nf4 {[%emt 0:01:17]} Be8 {[%emt 0:00:34]} 32. Nd5 {[%emt 0:00:42]} Rd6 {[%emt 0:01:02]} 33. Rf2 {[%emt 0:05:01]} Re6 {[%emt 0:02:26]} 34. b3 {[%emt 0:01:27]} g5 {[%emt 0:04:36]} 35. Kd4 {[%emt 0:02:04]} Kd7 {[%emt 0:00:47]} 36. c4 {[%emt 0:00:54]} bxc4 {[%emt 0:02:31]} 37. bxc4 {[%emt 0:00:07]} Bg6 {[%emt 0:01:15]} 38. Rb2 {[%emt 0:00:35]} Kc8 {[%emt 0:00:54]} 39. Rb6 {[%emt 0:00:22]} Rxb6 {[%emt 0:00:06]} 40. Nxb6+ {[%emt 0:00:11]} Kb8 {[%emt 0:01:19]} 41. Nd5 {[%emt 0:15:19]} h5 {[%emt 0:15:30]} 42. Kc5 {[%emt 0:01:12]} Ka7 {[%emt 0:00:00]} 43. Kd6 {[%emt 0:00:00]} hxg4 {[%emt 0:00:00]} 44. hxg4 {[%emt 0:00:00]} Bf7 {[%emt 0:00:00]} 45. c5 {[%emt 0:00:00]} 1-0

[Event "GER-ch Youth-ODJM 2022"]
[Site "Willingen"]
[Date "2022.06.05"]
[Round "1.2"]
[White "Schilay, Eva"]
[Black "Turel, Tugrul"]
[Result "0-1"]
[ECO "C47"]
[WhiteElo "1691"]
[BlackElo "1206"]
[Annotator "NA RC COMBH"]
[PlyCount "38"]
[EventDate "2022.06.05"]
[EventType "swiss"]
[EventRounds "9"]
[EventCountry "GER"]
[SourceTitle "playchess.com"]
[Source "ChessBase"]
[SourceQuality "1"]
[TimeControl "40/4500+30:900+30"]

1. e4 {[%emt 0:00:00]} e5 {[%emt 0:00:00]} 2. Nf3 {[%emt 0:00:00]} Nc6 {[%emt 0:00:00]} 3. Nc3 {[%emt 0:00:00]} Nf6 {[%emt 0:00:00]} 4. Bc4 {[%emt 0:00:00]} Nxe4 {[%emt 0:00:00]} 5. Nxe4 {[%emt 0:00:00]} d5 {[%emt 0:00:00]} 6. Bxd5 {[%emt 0:00:00]} Qxd5 {[%emt 0:00:00]} 7. Nc3 {[%emt 0:00:00]} Qd8 {[%emt 0:00:00]} 8. O-O {[%emt 0:00:00]} Bg4 {[%emt 0:00:00]} 9. Qe2 {[%emt 0:00:00]} Bd6 {[%emt 0:07:13]} 10. Qe3 {[%emt 0:05:35]} O-O {[%emt 0:02:33]} 11. a3 {[%emt 0:03:39]} Nd4 {[%emt 0:02:21]} 12. Nxd4 {[%emt 0:12:14]} exd4 {[%emt 0:00:10]} 13. Qe4 {[%emt 0:00:10]} f5 {[%emt 0:04:31]} 14. Qe6+ {[%emt 0:04:20]} Kh8 {[%emt 0:00:07]} 15. Nb5 {[%emt 0:07:07]} Rf6 {[%emt 0:00:37]} 16. Qc4 {[%emt 0:01:06]} Bxh2+ {[%emt 0:02:16]} 17. Kxh2 {[%emt 0:19:27]} Rh6+ {[%emt 0:00:16]} 18. Kg1 {[%emt 0:00:06]} Bf3 {[%emt 0:00:10]} 19. d3 {[%emt 0:03:04]} Rg6 {[%emt 0:00:08]} 0-1

[Event "GER-ch Youth-ODJM 2022"]
[Site "Willingen"]
[Date "2022.06.05"]
[Round "1.3"]
[White "Sayas Payyappat"]
[Black "Kieselbach, Marvin"]
[Result "0-1"]
[ECO "A00"]
[WhiteElo "1542"]
[BlackElo "1662"]
[Annotator "NA RC COMBH"]
[PlyCount "44"]
[EventDate "2022.06.05"]
[EventType "swiss"]
[EventRounds "9"]
[EventCountry "GER"]
[SourceTitle "playchess.com"]
[Source "ChessBase"]
[SourceQuality "1"]
[TimeControl "40/4500+30:900+30"]

1. g3 {[%emt 0:00:00]} Nf6 {[%emt 0:00:00]} 2. Bg2 {[%emt 0:00:00]} c5 {[%emt 0:00:00]} 3. Nf3 {[%emt 0:00:00]} Nc6 {[%emt 0:00:00]} 4. O-O {[%emt 0:00:00]} e5 {[%emt 0:00:00]} 5. d3 {[%emt 0:00:00]} d5 {[%emt 0:00:00]} 6. c4 {[%emt 0:00:00]} Be7 {[%emt 0:00:00]} 7. Bg5 {[%emt 0:00:00]} Be6 {[%emt 0:00:00]} 8. Bxf6 {[%emt 0:00:00]} Bxf6 {[%emt 0:00:00]} 9. cxd5 {[%emt 0:00:00]} Bxd5 {[%emt 0:00:00]} 10. Nc3 {[%emt 0:00:00]} Be6 {[%emt 0:00:18]} 11. Rc1 {[%emt 0:00:00]} b6 {[%emt 0:12:14]} 12. b3 {[%emt 0:00:00]} Qd7 {[%emt 0:03:48]} 13. Ne4 {[%emt 0:00:00]} Be7 {[%emt 0:01:23]} 14. Nfd2 {[%emt 0:00:00]} h5 {[%emt 0:11:46]} 15. Nc4 {[%emt 0:00:00]} h4 {[%emt 0:16:34]} 16. gxh4 {[%emt 0:02:48]} Bh3 {[%emt 0:02:48]} 17. e3 {[%emt 0:02:20]} Rxh4 {[%emt 0:02:19]} 18. Qf3 {[%emt 0:01:08]} O-O-O {[%emt 0:10:48]} 19. Nxc5 {[%emt 0:09:18]} Bxg2 {[%emt 0:01:50]} 20. Nxd7 {[%emt 0:02:10]} Bxf3 {[%emt 0:00:18]} 21. Ndxe5 {[%emt 0:00:21]} Bd5 {[%emt 0:06:28]} 22. Nxc6 {[%emt 0:00:46]} Rg4# {[%emt 0:00:17]} 0-1

[Event "GER-ch Youth-ODJM 2022"]
[Site "Willingen"]
[Date "2022.06.05"]
[Round "1.4"]
[White "Brockmeyer, Tobias"]
[Black "Brinkmann, Fabian"]
[Result "0-1"]
[ECO "A05"]
[WhiteElo "1936"]
[BlackElo "2145"]
[Annotator "TA"]
[PlyCount "55"]
[EventDate "2022.06.05"]
[EventType "swiss"]
[EventRounds "9"]
[EventCountry "GER"]
[SourceTitle "playchess.com"]
[Source "ChessBase"]
[SourceQuality "1"]
[TimeControl "40/4500+30:900+30"]

{[%evp 13,54,8,1,2,15,0,-4,-17,-1,-5,0,-22,-31,-30,-39,-39,-33,-72,0,-12,0,-12,-24,-64,81,70,202,207,530,504,519,520,817,796,1338,1337,29996,29997,29997,29998,29998,29999,29999]} 1. Nf3 {[%emt 0:00:00]} Nf6 {[%emt 0:00:00]} 2. d4 {[%emt 0:00:00]} e6 {[%emt 0:00:00]} 3. g3 {[%emt 0:00:00]} d5 {[%emt 0:00:00]} 4. Bg2 {[%emt 0:00:00]} Be7 {[%emt 0:00:00]} 5. O-O {[%emt 0:00:00]} O-O {[%emt 0:00:00]} 6. b3 {[%emt 0:00:00]} b6 {[%emt 0:00:00]} 7. Bb2 {[%emt 0:00:00]} Bb7 {[%emt 0:00:00]} 8. Nbd2 {[%emt 0:00:00] D02: 1 d4 d5 2 Nf3 sidelines, including 2...Nf6 3 g3 and 2...Nf6 3 Bf4.} Nbd7 {[%emt 0:00:00] 8...c5 is more advanced technology.} 9. Ne5 {[%emt 0:00:00]} c5 {[%emt 0:00:00]} 10. e3 {[%emt 0:00:36] The position is equal.} Rc8 {[%emt 0:02:22]} 11. Rc1 {[%emt 0:05:11]} Qc7 {[%emt 0:04:28]} 12. f4 {[%emt 0:05:11]} b5 {[%emt 0:16:56]} 13. c3 {[%emt 0:17:31] [#]} Qb6 $146 {[%emt 0:17:52]} ({Predecessor:} 13... a5 14. Qe2 c4 15. bxc4 dxc4 16. e4 Nxe5 17. fxe5 Nd7 18. Bh3 Qb6 19. Rf2 Bg5 {1-0 (39) Mitrovic,M (2125)-Rancic,Z (2217) Kragujevac 2017}) 14. Kh1 {[%emt 0:15:38]} a5 {[%emt 0:07:41]} 15. g4 {[%emt 0:03:28] [#] Black must now prevent g5.} Nb8 {[%emt 0:30:49]} (15... Nxe5 $17 16. dxe5 Nd7) 16. g5 $11 {[%emt 0:03:33]} Nfd7 {[%emt 0:00:09]} 17. Qh5 {[%emt 0:05:08]} Nxe5 {[%emt 0:02:36]} 18. dxe5 {[%emt 0:03:29]} a4 {[%emt 0:00:58] [#]} (18... Rfd8 $15) 19. Rf3 $1 $16 {[%emt 0:02:54][%cal Bf1f3,Bf3h3,Bh3h8][%mdl 32]} Rfd8 {[%emt 0:00:17] A mistake that costs the game.} (19... a3 $14 20. Bxa3 (20. Rh3 h6 $14) 20... Qa6) 20. Rh3 $40 {[%emt 0:03:13][%mdl 128] White has strong attack.} Kf8 $2 {[%emt 0:00:01]} (20... h6 {is a better chance.} 21. Rg1 (21. gxh6 g6 $14) 21... Rf8) 21. Qxh7 {[%emt 0:00:39][%cal Rh7h8]} Ke8 {[%emt 0:00:06]} 22. Qxg7 {[%emt 0:00:38] Strongly threatening Rh7.} Bf8 {[%emt 0:01:27]} (22... Kd7 $142 23. Qxf7 Rf8) 23. Rh8 {[%emt 0:00:26]} Nd7 {[%emt 0:00:18]} 24. g6 {[%emt 0:00:31]} fxg6 {[%emt 0:00:28]} 25. Qxg6+ {[%emt 0:00:07] White mates.} Ke7 {[%emt 0:00:05]} 26. Rh7+ {[%emt 0:00:06]} Bg7 {[%emt 0:00:04]} 27. Qxg7+ {[%emt 0:00:09]} Ke8 {[%emt 0:00:03]} 28. Qf7# {[%mdl 32768] Weighted Error Value: White=0.08 (flawless) /Black=0.83. Loss on time!?} 0-1

[Event "GER-ch Youth-ODJM 2022"]
[Site "Willingen"]
[Date "2022.06.05"]
[Round "1.5"]
[White "Wehrle, Valentin"]
[Black "Eberhart, Erik"]
[Result "0-1"]
[ECO "A52"]
[WhiteElo "1522"]
[BlackElo "1708"]
[Annotator "NA RC COMBH"]
[PlyCount "50"]
[EventDate "2022.06.05"]
[EventType "swiss"]
[EventRounds "9"]
[EventCountry "GER"]
[SourceTitle "playchess.com"]
[Source "ChessBase"]
[SourceQuality "1"]
[TimeControl "40/4500+30:900+30"]

1. d4 {[%emt 0:00:00]} Nf6 {[%emt 0:00:00]} 2. c4 {[%emt 0:00:00]} e5 {[%emt 0:00:00]} 3. dxe5 {[%emt 0:00:00]} Ng4 {[%emt 0:00:00]} 4. Nf3 {[%emt 0:00:00]} Bc5 {[%emt 0:00:00]} 5. e3 {[%emt 0:00:00]} Nc6 {[%emt 0:00:00]} 6. Nc3 {[%emt 0:00:00]} Ngxe5 {[%emt 0:00:00]} 7. Nxe5 {[%emt 0:00:00]} Nxe5 {[%emt 0:00:00]} 8. Be2 {[%emt 0:00:00]} d6 {[%emt 0:00:00]} 9. O-O {[%emt 0:02:19]} O-O {[%emt 0:00:00]} 10. b3 {[%emt 0:05:25]} Qh4 {[%emt 0:04:51]} 11. a3 {[%emt 0:15:10]} a6 {[%emt 0:01:40]} 12. Nd5 {[%emt 0:10:56]} c6 {[%emt 0:20:15]} 13. Nf4 {[%emt 0:01:04]} Qe7 {[%emt 0:03:19]} 14. Nd3 {[%emt 0:03:53]} Bb6 {[%emt 0:01:46]} 15. Bb2 {[%emt 0:02:19]} Bf5 {[%emt 0:02:06]} 16. Nxe5 {[%emt 0:06:16]} dxe5 {[%emt 0:00:08]} 17. Qc1 {[%emt 0:02:28]} Rad8 {[%emt 0:03:08]} 18. Qc3 {[%emt 0:02:52]} f6 {[%emt 0:02:13]} 19. Rfd1 {[%emt 0:01:33]} Bc7 {[%emt 0:01:37]} 20. Rxd8 {[%emt 0:02:09]} Rxd8 {[%emt 0:00:08]} 21. Rd1 {[%emt 0:00:19]} Rxd1+ {[%emt 0:01:53]} 22. Bxd1 {[%emt 0:00:10]} e4 {[%emt 0:07:14]} 23. a4 {[%emt 0:04:42]} Qd6 {[%emt 0:01:10]} 24. Qd4 {[%emt 0:01:43]} Qxh2+ {[%emt 0:00:26]} 25. Kf1 {[%emt 0:00:06]} Qh1+ {[%emt 0:01:14]} 0-1

[Event "GER-ch Youth-ODJM 2022"]
[Site "Willingen"]
[Date "2022.06.05"]
[Round "1.6"]
[White "Ermert, Karl Hans Ragnar"]
[Black "Paqarizi, Endrit"]
[Result "1-0"]
[ECO "B23"]
[WhiteElo "1662"]
[BlackElo "1380"]
[Annotator "NA RC COMBH"]
[PlyCount "33"]
[EventDate "2022.06.05"]
[EventType "swiss"]
[EventRounds "9"]
[EventCountry "GER"]
[SourceTitle "playchess.com"]
[Source "ChessBase"]
[SourceQuality "1"]
[TimeControl "40/4500+30:900+30"]

1. e4 {[%emt 0:00:00]} c5 {[%emt 0:00:00]} 2. Nc3 {[%emt 0:00:00]} e6 {[%emt 0:00:00]} 3. f4 {[%emt 0:00:00]} Nc6 {[%emt 0:00:00]} 4. Nf3 {[%emt 0:00:00]} Qc7 {[%emt 0:00:00]} 5. d3 {[%emt 0:00:00]} a6 {[%emt 0:00:00]} 6. Be2 {[%emt 0:00:00]} b5 {[%emt 0:00:00]} 7. O-O {[%emt 0:00:00]} Bb7 {[%emt 0:00:00]} 8. Qe1 {[%emt 0:04:15]} d6 {[%emt 0:00:51]} 9. f5 {[%emt 0:04:31]} Be7 {[%emt 0:09:42]} 10. Ng5 {[%emt 0:06:33]} Bxg5 {[%emt 0:10:12]} 11. Bxg5 {[%emt 0:00:09]} Nge7 {[%emt 0:01:31]} 12. f6 {[%emt 0:07:48]} gxf6 {[%emt 0:03:45]} 13. Bxf6 {[%emt 0:00:17]} Rg8 {[%emt 0:00:21]} 14. Qh4 {[%emt 0:02:52]} O-O-O {[%emt 0:01:21]} 15. Bh5 {[%emt 0:14:51]} Rdf8 {[%emt 0:01:13]} 16. Bxe7 {[%emt 0:02:10]} Nxe7 {[%emt 0:02:54]} 17. Bxf7 {[%emt 0:01:11]} 1-0

[Event "GER-ch Youth-ODJM 2022"]
[Site "Willingen"]
[Date "2022.06.05"]
[Round "1.7"]
[White "Muller, Anker"]
[Black "Ruddat, Jarne"]
[Result "0-1"]
[ECO "B72"]
[WhiteElo "1509"]
[BlackElo "1415"]
[Annotator "NA RC COMBH"]
[PlyCount "60"]
[EventDate "2022.06.05"]
[EventType "swiss"]
[EventRounds "9"]
[EventCountry "GER"]
[SourceTitle "playchess.com"]
[Source "ChessBase"]
[SourceQuality "1"]
[TimeControl "40/4500+30:900+30"]

1. e4 {[%emt 0:00:00]} c5 {[%emt 0:00:00]} 2. Nf3 {[%emt 0:00:00]} Nc6 {[%emt 0:00:00]} 3. Nc3 {[%emt 0:00:00]} g6 {[%emt 0:00:00]} 4. d4 {[%emt 0:00:00]} cxd4 {[%emt 0:00:00]} 5. Nxd4 {[%emt 0:00:00]} Bg7 {[%emt 0:00:00]} 6. Be3 {[%emt 0:00:00]} Nf6 {[%emt 0:00:00]} 7. Be2 {[%emt 0:00:00]} O-O {[%emt 0:00:00]} 8. Qd2 {[%emt 0:00:00]} d6 {[%emt 0:00:00]} 9. O-O-O {[%emt 0:00:00]} Bd7 {[%emt 0:00:00]} 10. Nb3 {[%emt 0:00:00]} a6 {[%emt 0:00:00]} 11. Bh6 {[%emt 0:00:00]} b5 {[%emt 0:00:00]} 12. Bxg7 {[%emt 0:00:00]} Kxg7 {[%emt 0:00:00]} 13. f3 {[%emt 0:00:00]} h5 {[%emt 0:00:00]} 14. Nd5 {[%emt 0:00:44]} Nxd5 {[%emt 0:00:00]} 15. Qxd5 {[%emt 0:01:43]} Qb6 {[%emt 0:00:30]} 16. Qd2 {[%emt 0:06:42]} a5 {[%emt 0:01:36]} 17. g4 {[%emt 0:04:41]} hxg4 {[%emt 0:00:30]} 18. fxg4 {[%emt 0:00:35]} a4 {[%emt 0:00:13]} 19. Nd4 {[%emt 0:00:52]} Ne5 {[%emt 0:00:11]} 20. Nf5+ {[%emt 0:13:05]} Bxf5 {[%emt 0:02:40]} 21. gxf5 {[%emt 0:03:58]} b4 {[%emt 0:00:25]} 22. Qd4 {[%emt 0:03:01]} Qb7 {[%emt 0:01:04]} 23. b3 {[%emt 0:14:50]} axb3 {[%emt 0:00:40]} 24. axb3 {[%emt 0:00:12]} Rfc8 {[%emt 0:01:27]} 25. Kb2 {[%emt 0:03:23]} Qc7 {[%emt 0:05:39]} 26. Bd3 {[%emt 0:04:17]} Qc3+ {[%emt 0:00:41]} 27. Qxc3 {[%emt 0:00:50]} bxc3+ {[%emt 0:00:02]} 28. Kb1 {[%emt 0:00:14]} Ra5 {[%emt 0:00:20]} 29. b4 {[%emt 0:04:33]} Ra4 {[%emt 0:00:14]} 30. fxg6 {[%emt 0:01:20]} Rca8 0-1

[Event "GER-ch Youth-ODJM 2022"]
[Site "Willingen"]
[Date "2022.06.05"]
[Round "1.9"]
[White "Schwarz, David"]
[Black "Kroemer, Emanuel"]
[Result "1/2-1/2"]
[ECO "B01"]
[WhiteElo "1244"]
[BlackElo "1415"]
[Annotator "NA RC COMBH"]
[PlyCount "80"]
[EventDate "2022.06.05"]
[EventType "swiss"]
[EventRounds "9"]
[EventCountry "GER"]
[SourceTitle "playchess.com"]
[Source "ChessBase"]
[SourceQuality "1"]
[TimeControl "40/4500+30:900+30"]

1. e4 {[%emt 0:00:00]} d5 {[%emt 0:00:00]} 2. exd5 {[%emt 0:00:00]} Qxd5 {[%emt 0:00:00]} 3. Nc3 {[%emt 0:00:00]} Qa5 {[%emt 0:00:00]} 4. Nf3 {[%emt 0:00:00]} Nf6 {[%emt 0:00:00]} 5. d4 {[%emt 0:00:00]} c6 {[%emt 0:00:00]} 6. Bc4 {[%emt 0:00:00]} Bf5 {[%emt 0:00:00]} 7. Bd2 {[%emt 0:00:00]} Nbd7 $14 {[%emt 0:00:00]} 8. O-O {[%emt 0:00:00]} Bg4 {[%emt 0:25:08]} 9. h3 {[%emt 0:01:05]} Bh5 {[%emt 0:02:27]} 10. g4 {[%emt 0:01:02]} Bg6 {[%emt 0:12:30]} 11. Qe2 {[%emt 0:20:00]} Qc7 {[%emt 0:04:29]} 12. Ne5 {[%emt 0:18:03]} e6 {[%emt 0:05:42]} 13. Bf4 {[%emt 0:01:44]} Bd6 {[%emt 0:02:18]} 14. h4 {[%emt 0:06:13]} Nd5 {[%emt 0:09:59]} 15. Bxd5 {[%emt 0:03:19]} Bxe5 {[%emt 0:00:42]} 16. dxe5 {[%emt 0:00:23]} cxd5 {[%emt 0:04:36]} 17. h5 {[%emt 0:09:25]} Bxc2 {[%emt 0:00:29]} 18. Nb5 {[%emt 0:01:00]} Qc5 {[%emt 0:04:23]} 19. Rac1 {[%emt 0:02:23]} Qb4 {[%emt 0:01:57]} 20. Nc7+ {[%emt 0:03:08]} Kf8 {[%emt 0:02:16]} 21. Nxa8 {[%emt 0:01:14]} Qxf4 {[%emt 0:00:51]} 22. Rxc2 {[%emt 0:02:39]} Nxe5 {[%emt 0:00:54]} 23. f3 {[%emt 0:05:07]} Ke7 {[%emt 0:04:02]} 24. Nc7 {[%emt 0:05:08]} Rd8 {[%emt 0:01:39]} 25. Kg2 {[%emt 0:03:05]} Nc4 {[%emt 0:01:06]} 26. Nb5 {[%emt 0:01:40]} Ne3+ {[%emt 0:00:34]} 27. Kh1 {[%emt 0:00:22]} Nxc2 {[%emt 0:00:54]} 28. Qxc2 {[%emt 0:00:10]} a6 {[%emt 0:00:00]} 29. Nc3 {[%emt 0:00:00]} Qc4 {[%emt 0:00:22]} 30. Re1 {[%emt 0:00:47]} d4 {[%emt 0:00:27]} 31. Qe4 {[%emt 0:00:26]} Qc5 {[%emt 0:01:01]} 32. Qxb7+ {[%emt 0:01:01]} Rd7 {[%emt 0:00:12]} 33. Ne4 {[%emt 0:00:41]} Qa5 {[%emt 0:00:53]} 34. b4 {[%emt 0:00:12]} Qa3 {[%emt 0:00:25]} 35. Qb6 {[%emt 0:01:21]} Qxf3+ {[%emt 0:00:17]} 36. Kg1 {[%emt 0:00:04]} Qxg4+ {[%emt 0:00:08]} 37. Kf1 {[%emt 0:00:07]} Qf5+ {[%emt 0:00:36]} 38. Kg1 {[%emt 0:00:14]} Qg4+ {[%emt 0:00:33]} 39. Kf1 {[%emt 0:00:05]} Qf5+ {[%emt 0:01:33]} 40. Kg1 {[%emt 0:00:11]} Qg4+ {[%emt 0:00:06]} 1/2-1/2

[Event "GER-ch Youth-ODJM 2022"]
[Site "Willingen"]
[Date "2022.06.05"]
[Round "1.10"]
[White "Brunner, Alexander"]
[Black "Hartwig, Eric-Jordan"]
[Result "1/2-1/2"]
[ECO "A45"]
[WhiteElo "1991"]
[BlackElo "1510"]
[Annotator "TA"]
[PlyCount "53"]
[EventDate "2022.06.05"]
[EventType "swiss"]
[EventRounds "9"]
[EventCountry "GER"]
[SourceTitle "playchess.com"]
[Source "ChessBase"]
[SourceQuality "1"]
[TimeControl "40/4500+30:900+30"]

{[%evp 9,53,4,20,6,8,-2,22,12,39,44,51,44,39,-17,-7,-13,33,40,63,56,43,0,25,15,9,0,0,0,0,0,-17,-41,-8,-20,-30,-28,130,0,0,0,0,0,0,-64,0,-65]} 1. d4 {[%emt 0:00:00]} Nf6 {[%emt 0:00:00]} 2. Nc3 {[%emt 0:00:00]} e6 {[%emt 0:00:00]} 3. Bf4 {[%emt 0:00:00]} Bb4 {[%emt 0:00:00]} 4. Qd3 {[%emt 0:00:00]} d5 {[%emt 0:00:00]} 5. a3 {[%emt 0:00:00]} Ba5 {[%emt 0:00:00]} 6. b4 {[%emt 0:00:00] A45: Trompowsky Attack.} Bb6 {[%emt 0:00:00]} 7. Nf3 {[%emt 0:01:17] [#]} Nc6 $146 {[%emt 0:01:08]} ({Predecessor:} 7... a5 8. Rb1 axb4 9. axb4 Ra3 10. Bc1 Ra8 11. g4 Nc6 12. g5 Ne4 13. Bg2 Qd6 14. Nxe4 dxe4 15. Qxe4 Nxb4 {1-0 (37) Gelman,A (2403)-Terry,R (2504) Chess.com INT 2021}) 8. h3 {[%emt 0:06:18]} a5 {[%emt 0:02:31]} 9. b5 {[%emt 0:03:27]} Ne7 {[%emt 0:01:39]} 10. Na4 {[%emt 0:06:45]} c6 {[%emt 0:04:54]} 11. Ne5 {[%emt 0:03:28]} ({White should try} 11. e3 $14) 11... Bc7 $11 {[%emt 0:01:47]} 12. e3 {[%emt 0:06:08][%cal Be2e3,Be3f4,Bf4e5][%mdl 32]} Nh5 {[%emt 0:01:17]} (12... Ne4 $11) 13. Bh2 $14 {[%emt 0:05:34]} f6 {[%emt 0:04:31]} 14. Be2 {[%emt 0:06:52] White is much more active.} fxe5 {[%emt 0:04:49]} 15. b6 {[%emt 0:03:39]} Nf4 {[%emt 0:03:52]} 16. exf4 {[%emt 0:02:08]} Bxb6 {[%emt 0:00:57]} 17. fxe5 {[%emt 0:01:05]} Ba7 {[%emt 0:06:08]} 18. Bf4 {[%emt 0:08:36]} Nf5 {[%emt 0:04:56][%cal Be7f5,Bf5h4,Bh4g6][%mdl 32]} 19. c3 {[%emt 0:05:59]} b5 {[%emt 0:06:02]} 20. Nb2 {[%emt 0:00:24]} Bd7 {[%emt 0:02:36]} 21. g4 {[%emt 0:08:05]} Nh4 {[%emt 0:00:53] ...Ng2+ is the strong threat.} 22. O-O {[%emt 0:01:22] Against Ng2} g5 $2 {[%emt 0:00:23] [#]} (22... c5 $11) 23. Bg3 {[%emt 0:00:58]} (23. Be3 $1 $16) 23... Ng6 $11 {[%emt 0:00:11]} 24. f4 {[%emt 0:00:42]} gxf4 {[%emt 0:01:06]} 25. Bxf4 {[%emt 0:02:14]} O-O {[%emt 0:00:08]} 26. Bg3 {[%emt 0:02:44]} (26. Be3 $11) 26... Qe7 {[%emt 0:01:46]} ({Black should play} 26... Qg5 $15 27. Kh2 c5) 27. Kg2 {Weighted Error Value: White=0.22 (precise) /Black=0.25 (precise)} (27. Rxf8+ $11 Rxf8 28. Qe3) 1/2-1/2

[Event "GER-ch Youth-ODJM 2022"]
[Site "Willingen"]
[Date "2022.06.05"]
[Round "1.11"]
[White "Köhler, Lukas"]
[Black "Metzinger, Hannes"]
[Result "1-0"]
[ECO "B10"]
[WhiteElo "2099"]
[BlackElo "1845"]
[Annotator "TA"]
[PlyCount "40"]
[EventDate "2022.06.05"]
[EventType "swiss"]
[EventRounds "9"]
[EventCountry "GER"]
[SourceTitle "playchess.com"]
[Source "ChessBase"]
[SourceQuality "1"]
[TimeControl "40/4500+30:900+30"]

{[%evp 10,40,11,8,23,12,16,23,41,0,10,0,-8,-21,-12,-24,-16,-11,-13,-24,-22,-23,-25,-35,-30,-70,-72,-186,-179,-195,-188,-391,-371]} 1. e4 {[%emt 0:00:00]} c6 {[%emt 0:00:00]} 2. c4 {[%emt 0:00:00]} d5 {[%emt 0:00:00]} 3. exd5 {[%emt 0:00:00]} cxd5 {[%emt 0:00:00]} 4. cxd5 {[%emt 0:00:00]} Nf6 {[%emt 0:00:00]} 5. Nc3 {[%emt 0:00:00]} Nxd5 {[%emt 0:00:00]} 6. Nf3 {[%emt 0:00:00]} Nxc3 {[%emt 0:00:00] B10: Caro-Kann: 2 d3 and 2 c4.} 7. bxc3 {[%emt 0:00:00]} Qc7 {[%emt 0:00:00]} 8. d4 {[%emt 0:00:00]} Nd7 {[%emt 0:00:00] White has an edge.} ({Don't play} 8... Qxc3+ 9. Bd2 Qc6 10. Rc1 Qe4+ 11. Be3 $16) 9. Qb3 {[%emt 0:00:00]} e6 {[%emt 0:00:00]} 10. Bd3 {[%emt 0:00:00]} Bd6 {[%emt 0:02:01] [#]} 11. Ng5 $146 {[%emt 0:09:11]} ({Predecessor:} 11. O-O O-O 12. Qc2 h6 13. Qe2 b6 14. c4 Bb7 15. Bb2 Rfe8 16. Rfe1 Bxf3 17. Qxf3 Bxh2+ {½-½ (80) Shyam,S (2552)-Kojima,S (2399) Douglas 2016}) 11... Nf6 {[%emt 0:09:03]} 12. h3 {[%emt 0:00:06]} Bd7 {[%emt 0:03:19]} 13. O-O {[%emt 0:02:27]} Bc6 {[%emt 0:03:26]} 14. Re1 {[%emt 0:00:58]} O-O {[%emt 0:02:41]} 15. c4 {[%emt 0:00:31]} Rac8 {[%emt 0:19:16]} 16. c5 {[%emt 0:12:41]} Be7 {[%emt 0:12:29]} 17. Rb1 {[%emt 0:19:52]} h6 {[%emt 0:11:16]} 18. Nxe6 {[%emt 0:06:42]} fxe6 $19 {[%emt 0:00:28]} 19. Qxe6+ {[%emt 0:00:05] [#]} Kh8 $1 {[%emt 0:01:47][%cal Oe7c5] White must now prevent ...Bxc5!} 20. Qxe7 {[%emt 0:00:39]} (20. Bb2 {was worth a try.} Rce8 21. Bg6) 20... Rfe8 {[%mdl 32768] Weighted Error Value: White=0.31/Black=0.04 (flawless) . Loss on time!?} 1-0